bitfinex-derivatives/quotes_ETHF0:USTF0_20250730
["timestamp","ask_amount","ask_price","bid_price","bid_amount"]
[1753912375353,1.69708,3758.2,3758.1,3.692]
[1753912376149,0.53212,3758.7,3758.6,1.5627]
[1753912376454,1.2227,3758.8,3758.7,3.692]
[1753912376647,1.1649,3758.8,3758.7,3.692]
[1753912377853,1.7562,3758.8,3758.7,3.692]
[1753912378054,2.2083,3758.8,3758.7,3.692]
[1753912379757,1.7562,3758.8,3758.7,3.692]
[1753912379958,19.07607,3759.0,3758.9,1.5424]
[1753912380258,20.16247,3759.0,3758.9,3.6387]
[1753912380952,2.3516,3759.3,3759.2,1.5424]
[1753912381157,3.0073,3759.3,3759.2,3.6387]
[1753912381961,3.53933,3759.3,3759.2,3.6387]
[1753912382157,0.53203,3759.3,3759.2,3.6387]
[1753912382350,3.53933,3759.3,3759.2,3.6387]
[1753912382761,3.2078,3759.4,3759.2,3.6387]
[1753912382957,4.82622,3759.4,3759.3,3.6387]
[1753912383260,6.2151,3759.4,3759.3,3.6387]
[1753912383763,3.0073,3759.4,3759.3,3.6387]
[1753912384461,1.32984,3760.0,3759.0,3.73985]
[1753912384462,23.76681,3760.1,3760.0,0.4643]
[1753912384657,25.28901,3760.1,3760.0,2.7032]
[1753912385059,0.53199,3759.6,3759.5,1.0866]
[1753912385260,0.53199,3759.6,3759.5,3.6387]
[1753912385457,0.53197,3759.7,3759.6,2.0963]
[1753912385660,2.20107,3759.7,3759.6,3.6387]
[1753912385861,3.53927,3759.7,3759.6,3.6387]
[1753912386054,3.2078,3760.9,3760.0,1.32981]
[1753912386264,1.6691,3760.9,3760.8,6.8465]
[1753912386468,3.0073,3760.9,3760.8,3.6387]
[1753912386968,1.4851,3761.0,3760.9,3.159]
[1753912387161,3.13442893,3761.0,3760.9,3.6387]
[1753912387359,3.0073,3761.0,3760.9,3.6387]
[1753912388166,0.4307,3761.2,3761.1,2.74877]
[1753912388359,0.4307,3761.2,3761.1,4.17047]
[1753912389062,0.38,3761.7,3761.3,0.53173]
[1753912389258,3.0073,3761.4,3761.3,1.5643]
[1753912389566,3.0073,3761.4,3761.3,2.5083]
[1753912389771,3.0073,3761.4,3761.3,3.1829]
[1753912390675,0.5317,3761.6,3761.5,1.5424]
[1753912390964,0.12687543,3761.6,3761.5,3.6387]
[1753912391165,0.38,3761.7,3761.6,2.217]
[1753912391370,0.50608641,3761.7,3761.6,3.6387]
[1753912392265,0.8107,3761.7,3761.6,3.6387]
[1753912392465,2.58078,3761.7,3761.6,3.6387]
[1753912392664,3.91898,3761.7,3761.6,3.6387]
[1753912392864,0.38,3761.7,3761.6,3.6387]
[1753912393066,3.3873,3761.7,3761.6,2.7032]
[1753912393268,3.3873,3761.7,3761.6,3.6387]
[1753912394962,0.38,3761.7,3761.6,9.78613733]
[1753912395466,0.38,3761.7,3761.6,14.78613733]
[1753912395667,3.6385,3762.5,3762.4,3.6387]
[1753912395967,6.34098639,3762.5,3762.4,3.6387]
[1753912396372,7.02278639,3762.5,3762.4,3.6387]
[1753912396575,6.8969,3762.5,3762.4,3.6387]
[1753912397676,6.2151,3762.5,3762.4,3.6387]
[1753912398971,3.2078,3762.5,3762.4,8.54683733]
[1753912399177,3.78984,3763.5,3763.4,1.1389]
[1753912399381,4.22054,3763.5,3763.4,1.7612]
[1753912399677,4.22054,3763.5,3763.4,2.7032]
[1753912399678,3.0073,3763.5,3763.4,2.7032]
[1753912399871,2.1408,3763.5,3763.4,0.4643]
[1753912400177,4.22058,3763.1,3763.0,1.4063]
[1753912400376,3.6891,3762.8,3762.7,6.24764]
[1753912400673,3.6891,3762.8,3762.7,6.92224]
[1753912401271,3.6891,3762.8,3762.7,1.7612]
[1753912401465,4.22066,3762.6,3762.3,0.6746]
[1753912401666,3.6891,3762.5,3762.4,1.1389]
[1753912401871,3.0073,3762.5,3762.4,1.7612]
[1753912402073,3.6891,3762.5,3762.4,3.6387]
[1753912402569,3.6891,3762.5,3762.2,3.2078]
[1753912402570,4.5365,3763.2,3762.3,1.6166]
[1753912402768,1.43397,3762.5,3762.4,1.5424]
[1753912402972,2.08967,3762.5,3762.4,3.6387]
[1753912403172,2.1408,3762.5,3762.4,3.6387]
[1753912403778,0.53156,3762.6,3762.5,3.1829]
[1753912403975,0.4307,3762.6,3762.5,4.17027]
[1753912404174,0.8665,3763.0,3762.2,5.61573733]
[1753912404175,21.8348,3763.2,3763.1,3.6387]
[1753912404473,3.2078,3763.2,3763.1,3.6387]
[1753912404779,3.2078,3763.2,3763.1,4.17019]
[1753912405174,5.22432,3763.6,3763.5,1.5424]
[1753912405678,6.74652,3763.6,3763.5,3.6387]
[1753912406178,7.42832,3763.6,3763.5,3.6387]
[1753912406374,6.8969,3763.6,3763.5,3.6387]
[1753912406676,6.2151,3763.6,3763.5,2.7032]
[1753912406874,3.2078,3763.6,3763.5,1.7612]
[1753912407070,3.2078,3763.6,3763.5,3.6387]
[1753912407265,1.5581,3764.0,3763.9,2.6967]
[1753912407476,3.6891,3764.0,3763.9,2.7032]
[1753912407673,4.22046,3764.0,3763.7,0.53139]
[1753912407876,3.6891,3763.9,3763.8,0.6746]
[1753912408076,3.6891,3763.9,3763.8,3.1829]
[1753912408280,3.6891,3763.9,3763.8,2.7032]
[1753912408669,3.2078,3764.1,3764.0,1.7625]
[1753912408869,5.4158,3764.1,3764.0,3.5491]
[1753912409079,6.3564,3764.1,3764.0,3.5491]
[1753912409274,5.5134,3764.1,3763.4,3.09823733]
[1753912409474,3.1486,3763.5,3763.3,0.53145]
[1753912409674,1.7478,3763.4,3763.3,1.1628]
[1753912409978,2.73944,3763.4,3763.3,1.1628]
[1753912410181,2.73944,3763.4,3763.3,2.6358]
[1753912410375,0.6709,3763.0,3761.8,3.2078]
[1753912410576,2.09308,3761.7,3761.6,3.7427]
[1753912410782,5.30088,3761.7,3761.6,0.6903]
[1753912410979,2.09313,3761.4,3761.3,0.6903]
[1753912411577,3.2078,3761.7,3761.5,1.0722]
[1753912411780,3.2078,3761.7,3761.6,3.7427]
[1753912412282,1e-08,3762.0,3761.7,2.2277]
[1753912412470,1e-08,3762.0,3761.9,7.84343733]
[1753912412873,1e-08,3762.0,3761.9,3.8981]
[1753912413175,0.94060001,3762.0,3761.9,3.8981]
[1753912413482,0.94060001,3762.0,3761.9,3.2078]
[1753912413681,0.53169,3761.7,3761.5,3.2078]
[1753912414183,0.53169,3761.7,3761.6,0.6903]
[1753912414481,1.47229,3761.7,3761.6,0.6903]
[1753912415184,1.47229,3761.7,3761.5,3.2078]
[1753912415378,0.9406,3761.6,3761.5,3.2078]
[1753912416183,1.5614,3761.6,3761.5,3.2078]
[1753912416782,1.5614,3761.6,3761.5,3.8981]
[1753912417779,1.5614,3761.6,3761.5,3.2078]
[1753912417983,1.5614,3761.6,3761.5,3.8981]
[1753912418183,1.5614,3761.6,3761.5,4.3706]
[1753912418478,20.3454,3761.6,3761.5,4.3706]
[1753912418678,20.3454,3761.6,3761.5,6.2864]
[1753912418881,20.3454,3761.6,3761.5,6.9505]
[1753912420484,21.07310111,3761.6,3761.5,6.9505]
[1753912421286,20.3454,3761.6,3761.5,6.9505]
[1753912421487,20.3454,3761.6,3761.5,6.2864]
[1753912421689,20.3454,3761.6,3761.5,3.8981]
[1753912422187,20.3454,3761.6,3761.5,3.2078]
[1753912423786,2.09315,3761.2,3761.1,3.2078]
[1753912423985,20.85915,3761.2,3761.1,3.2078]
[1753912424887,21.41175,3761.2,3761.1,3.2078]
[1753912425085,26.41175,3761.2,3761.1,3.2078]
[1753912426486,21.41175,3761.2,3761.1,3.2078]
[1753912426687,0.53175,3761.2,3761.1,3.8981]
[1753912426892,19.28673,3761.4,3761.3,1.515]
[1753912427091,19.28673,3761.4,3761.3,5.3869]
[1753912427294,0.1062,3761.8,3761.4,0.53173]
[1753912427485,2.53937,3761.8,3761.7,2.2053]
[1753912427688,22.03728498,3761.8,3761.7,2.2053]
[1753912428091,22.03728498,3761.8,3761.7,3.0786]
[1753912428290,2.53937,3761.8,3761.7,3.7427]
[1753912428496,21.30537,3761.8,3761.7,3.7427]
[1753912431795,2.53937,3761.8,3761.7,3.7427]
[1753912431998,21.28237,3761.8,3761.7,3.7427]
[1753912433795,19.27467,3761.8,3761.7,3.7427]
[1753912433996,20.94227,3761.8,3761.7,3.7427]
[1753912435292,20.92127,3761.8,3761.7,3.7427]
[1753912435497,2.19927,3761.8,3761.7,3.7427]
[1753912435798,19.25167,3761.8,3761.7,3.7427]
[1753912438399,19.87247,3761.8,3761.7,3.7427]
[1753912438698,21.12517,3761.8,3761.7,3.7427]
[1753912438895,0.53167,3761.8,3761.7,3.7427]
[1753912439093,18.69700001,3762.0,3761.9,1.6333]
[1753912439294,18.69700001,3762.0,3761.9,5.21718274]
[1753912439495,1e-08,3762.0,3761.9,7.82088274]
[1753912440491,1e-08,3762.0,3761.9,1.6333]
[1753912442000,0.65960001,3762.0,3761.9,1.6333]
[1753912442200,0.75350001,3762.0,3761.9,1.6333]
[1753912442403,0.65960001,3762.0,3761.9,4.0296]
[1753912442803,0.81000001,3762.0,3761.9,4.0296]
[1753912442992,1.88030001,3762.0,3761.9,4.0296]
[1753912443994,2.03050001,3762.0,3761.9,4.0296]
[1753912445799,1e-08,3762.0,3761.9,4.0296]
[1753912446098,1e-08,3762.0,3761.9,1.6333]
[1753912446490,0.75350001,3762.0,3761.9,1.6333]
[1753912446702,1.88030001,3762.0,3761.9,1.6333]
[1753912447202,2.03050001,3762.0,3761.9,3.3445]
[1753912447401,2.03050001,3762.0,3761.9,4.0296]
[1753912447802,2.03050001,3762.0,3761.9,2.3614]
[1753912448294,2.03050001,3762.0,3761.9,4.0296]
[1753912448710,1.05410001,3762.0,3761.9,3.0465]
[1753912448899,2.03050001,3762.0,3761.9,3.0465]
[1753912449093,2.03050001,3762.0,3761.9,4.0296]
[1753912449500,2.12450001,3762.0,3761.9,0.7281]
[1753912449695,2.03050001,3762.0,3761.9,0.7281]
[1753912449898,2.03050001,3762.0,3761.9,1.2247]
[1753912450298,2.03050001,3762.0,3761.9,1.7069]
[1753912451199,0.53166,3761.9,3761.7,3.2078]
[1753912451402,20.7055,3761.8,3761.7,3.9359]
[1753912451907,20.7055,3761.8,3761.7,4.4325]
[1753912457506,20.7055,3761.8,3761.7,5.8978]
[1753912457706,20.7055,3761.8,3761.7,6.5829]
[1753912457908,20.7055,3761.8,3761.7,7.2374]
[1753912466316,1e-08,3762.0,3761.9,1.6682]
[1753912466609,1e-08,3762.0,3761.9,1.6333]
[1753912467016,1e-08,3762.0,3761.9,6.6333]
[1753912467313,17.08660001,3762.3,3762.2,2.16491]
[1753912467516,17.08660001,3762.3,3762.2,8.95659274]
[1753912469113,18.609,3762.5,3762.4,0.53158]
[1753912469417,18.609,3762.5,3762.4,3.9296]
[1753912471510,19.14057,3762.5,3762.4,3.9296]
[1753912471717,18.609,3762.5,3762.4,3.9296]
[1753912472715,0.53156,3762.6,3762.4,3.9296]
[1753912472920,5.62942274,3763.4,3763.3,3.9296]
[1753912473122,24.21042274,3763.4,3763.3,2.2696]
[1753912473319,24.21042274,3763.4,3763.3,0.7139]
[1753912473508,24.21042274,3763.4,3763.1,1.66]
[1753912473708,4.44187,3763.2,3763.1,2.8278]
[1753912475011,0.53153,3762.8,3762.7,3.2078]
[1753912475216,19.09953,3762.8,3762.7,7.1374]
[1753912476511,19.79473,3762.8,3762.7,7.1374]
[1753912476719,20.25743,3762.8,3762.7,7.1374]
[1753912477823,21.36053,3762.8,3762.7,7.1374]
[1753912478021,22.27853,3762.8,3762.7,7.1374]
[1753912478222,21.747,3762.8,3762.7,7.1374]
[1753912478422,20.829,3762.8,3762.7,7.1374]
[1753912479122,20.1338,3762.8,3762.7,7.1374]
[1753912479318,18.568,3762.8,3762.7,7.1374]
[1753912479620,18.568,3762.8,3762.7,3.2078]
[1753912479825,22.4784,3762.8,3762.7,7.1374]
[1753912482324,22.4784,3762.8,3762.7,3.9296]
[1753912482517,0.5317,3761.6,3761.5,3.9296]
[1753912482720,2.7929,3761.6,3761.5,7.1374]
[1753912483120,3.5243,3761.6,3761.5,7.1374]
[1753912484730,3.5243,3761.6,3761.5,3.9296]
[1753912487228,2.9926,3761.5,3761.4,6.4235]
[1753912487430,21.5516,3761.5,3761.4,6.4235]
[1753912487630,21.5516,3761.5,3761.4,7.1374]
[1753912488132,20.8202,3761.5,3761.4,7.1374]
[1753912490330,19.9022,3761.5,3761.4,7.1374]
[1753912490632,19.8134,3761.5,3761.4,7.1374]
[1753912491333,19.9022,3761.5,3761.4,7.1374]
[1753912492233,19.6713,3761.5,3761.4,7.1374]
[1753912493927,19.6713,3761.5,3761.4,6.2012]
[1753912494132,19.7528,3761.5,3761.4,7.1374]
[1753912494635,20.6708,3761.5,3761.4,7.1374]
[1753912495434,20.8013,3761.5,3761.4,7.1374]
[1753912495829,21.5327,3761.5,3761.4,7.1374]
[1753912496334,18.559,3761.5,3761.4,7.1374]
[1753912496734,19.6713,3761.5,3761.4,7.1374]
[1753912496934,20.8013,3761.5,3761.4,7.1374]
[1753912498435,20.8013,3761.5,3761.4,3.9296]
[1753912498636,21.5277,3761.5,3761.4,3.9296]
[1753912499140,0.53177,3761.1,3761.0,4.8336]
[1753912499340,2.171,3761.1,3761.0,4.8336]
[1753912499639,1.1127,3761.1,3761.0,4.8336]
[1753912499836,18.56,3761.2,3761.0,7.2128]
[1753912500140,0.53177,3761.1,3761.0,7.2128]
[1753912500330,0.0763,3761.3,3761.0,5.5075]
[1753912500530,2.82475,3761.9,3761.8,4.005]
[1753912500736,0.53157,3762.5,3762.4,1.6258]
[1753912501040,18.559,3762.5,3762.4,2.15738]
[1753912501437,18.559,3762.5,3762.4,4.53658]
[1753912501644,18.559,3762.5,3762.4,4.005]
[1753912506441,0.53157,3762.6,3762.3,0.53159]
[1753912506442,1.0141,3763.0,3762.9,0.4824]
[1753912506650,21.3806,3763.0,3762.9,4.005]
[1753912507041,20.2002,3763.0,3762.9,4.005]
[1753912507249,19.0875,3763.0,3762.9,4.005]
[1753912507648,21.2585,3763.0,3762.9,4.005]
[1753912508043,19.6687,3763.0,3762.9,4.005]
[1753912508754,19.745,3763.0,3762.9,4.005]
[1753912509645,20.727,3763.0,3762.9,4.005]
[1753912510348,0.53149,3763.1,3762.9,4.005]
[1753912510551,1.72049,3763.1,3763.0,4.005]
[1753912510853,21.25549,3763.1,3763.0,4.005]
[1753912512353,21.37759,3763.1,3763.0,4.005]
[1753912513452,22.10399,3763.1,3763.0,4.005]
[1753912515657,21.37759,3763.1,3763.0,4.005]
[1753912517156,22.10399,3763.1,3763.0,4.005]
[1753912517858,21.37759,3763.1,3763.0,4.005]
[1753912518549,0.53148,3763.2,3763.1,4.005]
[1753912518851,1.2348,3764.0,3763.9,1.6258]
[1753912519057,3.2078,3764.4,3764.0,4.005]
[1753912519058,0.53136,3764.1,3764.0,4.005]
[1753912519253,19.07836,3764.1,3764.0,4.005]
[1753912519461,19.56096,3764.1,3764.0,4.005]
[1753912520560,2.82437,3764.6,3764.5,1.6258]
[1753912520763,21.24927,3764.6,3764.5,4.005]
[1753912521154,21.37137,3764.6,3764.5,4.005]
[1753912521356,1.1127,3764.6,3764.5,4.005]
[1753912521561,19.6597,3764.6,3764.5,4.005]
[1753912522054,20.718,3764.6,3764.5,4.005]
[1753912522460,20.8401,3764.6,3764.5,4.005]
[1753912523557,0.91126,3764.7,3764.6,4.005]
[1753912523859,0.91126,3764.7,3764.2,1.27312]
[1753912523860,0.5313,3764.5,3764.2,1.27312]
[1753912524159,20.714,3764.4,3764.3,4.005]
[1753912524360,2.171,3764.4,3764.3,4.005]
[1753912524552,20.714,3764.4,3764.3,4.005]
[1753912524754,19.6557,3764.4,3764.3,4.005]
[1753912525157,18.543,3764.4,3764.3,1.6258]
[1753912525751,18.543,3764.4,3764.3,4.005]
[1753912525951,0.5313,3764.5,3764.3,1.6258]
[1753912526157,1.0902,3764.5,3764.4,4.005]
[1753912526350,21.2433,3764.5,3764.4,4.005]
[1753912526549,19.0723,3764.5,3764.4,4.005]
[1753912527162,21.3654,3764.5,3764.4,4.005]
[1753912527852,0.5313,3764.5,3764.4,1.2331]
[1753912528060,0.38,3764.7,3764.6,4.005]
[1753912528256,18.918,3764.7,3764.6,4.005]
[1753912528862,0.38,3764.7,3764.6,4.005]
[1753912529064,0.38,3764.7,3764.6,4.53627]
[1753912532057,0.38,3764.7,3764.6,4.53115765]
[1753912533859,0.38,3764.7,3764.6,3.99988765]
[1753912537858,3.2078,3765.6,3765.2,0.53119]
[1753912538065,4.3594,3765.6,3765.5,3.9209]
[1753912538264,0.4679,3765.6,3765.5,3.9209]
[1753912539567,0.5311,3765.9,3765.6,0.9261]
[1753912539764,2.7793,3765.7,3765.6,3.9209]
[1753912541772,2.8755,3765.7,3765.6,3.9209]
[1753912541962,1.0914,3765.5,3765.4,3.2078]
[1753912542168,1.0914,3765.1,3765.0,5.29522]
[1753912542365,2.8755,3765.1,3765.0,5.29522]
[1753912542562,1.9382,3765.1,3765.0,7.65992]
[1753912542767,1.1516,3765.1,3765.0,7.65992]
[1753912543074,2.7793,3765.1,3765.0,7.65992]
[1753912543780,3.4067,3765.1,3765.0,7.1287]
[1753912544272,2.8755,3765.1,3765.0,7.1287]
[1753912547980,2.8755,3765.1,3764.3,1.50481997]
[1753912547981,2.8755,3764.7,3764.6,3.2078]
[1753912554877,2.8755,3764.7,3764.6,7.1287]
[1753912555581,2.8755,3764.7,3764.6,3.6561]
[1753912556482,2.8755,3764.7,3764.6,0.4483]
[1753912559884,2.8755,3764.7,3764.6,3.1974]
[1753912560072,2.8755,3764.7,3764.6,3.7929]
[1753912561782,2.8755,3764.7,3764.2,0.53132]
[1753912562083,2.8635,3764.2,3764.1,7.0098]
[1753912562282,2.8042,3764.2,3764.1,7.0098]
[1753912562483,0.4527,3764.2,3764.1,7.0098]
[1753912563087,3.2078,3765.7,3764.3,1.32829]
[1753912563276,0.53112,3765.8,3765.6,2.68738274]
[1753912563483,0.98376,3766.2,3766.1,3.802]
[1753912563681,1.26438911,3766.2,3766.1,3.802]
[1753912563884,0.53105,3766.3,3766.1,1.4998]
[1753912564090,0.53105,3766.3,3766.2,3.802]
[1753912564384,0.68353534,3766.3,3766.2,3.802]
[1753912565088,0.53105,3766.3,3766.2,3.802]
[1753912565292,0.68352489,3766.3,3766.2,3.802]
[1753912566187,0.53101,3766.5,3766.2,1.4998]
[1753912566494,0.53101,3766.5,3766.4,3.802]
[1753912566695,0.68348998,3766.5,3766.4,3.802]
[1753912567986,1.13618998,3766.5,3766.4,3.802]
[1753912568792,0.53101,3766.5,3766.4,3.802]
[1753912568995,0.53101,3766.6,3766.5,3.802]
[1753912570094,0.98371,3766.6,3766.5,3.802]
[1753912575296,3.14211,3766.6,3766.5,3.802]
[1753912575690,0.53101,3766.6,3766.5,3.802]
[1753912575893,0.98371,3766.6,3766.5,3.802]
[1753912576093,4.31151,3766.6,3766.5,3.802]
[1753912576293,0.53101,3766.6,3766.5,3.802]
[1753912576693,2.06624,3766.3,3766.2,3.802]
[1753912576998,3.74314,3766.3,3766.2,3.802]
[1753912577202,2.06624,3766.3,3766.2,3.802]
[1753912577394,2.63464,3766.3,3766.2,3.802]
[1753912577595,3.0561,3766.3,3766.2,3.802]
[1753912577794,3.7805,3766.3,3766.2,3.802]
[1753912578099,0.53102,3766.5,3766.4,3.802]
[1753912578591,0.531,3766.6,3766.5,3.802]
[1753912578797,2.6346,3766.6,3766.5,3.802]
[1753912579000,4.3115,3766.6,3766.5,3.802]
[1753912580794,0.53102,3766.5,3766.3,0.53103]
[1753912581000,1.5352,3766.4,3766.3,0.53103]
[1753912581197,0.4527,3766.4,3766.3,2.03083]
[1753912581399,3.7805,3766.4,3766.3,4.33303]
[1753912582099,3.0561,3766.4,3766.3,4.33303]
[1753912585100,2.1036,3766.4,3766.3,4.33303]
[1753912588400,0.53101,3766.5,3766.3,4.33303]
[1753912588700,3.7805,3766.4,3766.3,4.33303]
[1753912590308,2.1036,3766.4,3766.3,4.33303]
[1753912591004,3.2078,3767.0,3766.3,3.802]
[1753912591203,0.8889,3767.3,3766.9,4.39538274]
[1753912591406,3.648,3767.1,3766.9,3.2078]
[1753912591602,3.648,3767.0,3766.9,2.8655]
[1753912591802,0.473,3766.6,3766.5,3.2078]
[1753912592002,3.648,3766.6,3766.5,3.2078]
[1753912592301,0.473,3766.6,3766.5,7.47601]
[1753912592507,1.0236,3767.1,3767.0,1.5206]
[1753912592710,1.0236,3767.1,3767.0,3.7372]
[1753912593099,1.6391,3767.1,3767.0,3.7372]
[1753912593506,0.38,3767.7,3767.5,0.53087]
[1753912593712,0.38,3767.7,3767.6,3.7372]
[1753912594012,0.853,3767.7,3767.6,3.7372]
[1753912594305,0.38,3767.7,3767.6,3.7372]
[1753912596105,0.53073,3768.5,3767.6,8.7372]
[1753912596313,2.16983,3768.5,3768.4,3.7372]
[1753912596512,2.62123,3768.5,3768.4,3.7372]
[1753912596809,0.53073,3768.5,3768.4,3.7372]
[1753912597016,3.73852,3768.6,3768.4,2.2098]
[1753912597213,4.28912,3768.6,3768.4,2.2098]
[1753912597418,2.9794,3768.5,3768.4,2.2098]
[1753912597619,3.648,3768.5,3768.4,2.2098]
[1753912597918,3.648,3768.5,3768.4,3.7372]
[1753912598418,3.648,3768.5,3768.4,1.5274]
[1753912598616,3.648,3768.2,3768.1,3.7372]
[1753912599719,1.5399,3768.0,3767.9,2.70818274]
[1753912600019,3.648,3768.0,3767.9,4.92478274]
[1753912600220,2.7591,3768.0,3767.9,4.92478274]
[1753912600420,0.473,3768.0,3767.9,3.7372]
[1753912600622,3.648,3768.0,3767.9,3.7372]
[1753912600920,4.17879,3768.0,3767.9,3.7372]
[1753912601118,4.17882,3767.8,3767.7,6.945]
[1753912601314,0.5308,3768.0,3767.9,3.048]
[1753912601520,0.53079,3768.1,3768.0,3.7372]
[1753912603927,1.00379,3768.1,3768.0,3.7372]
[1753912604226,4.17879,3768.1,3768.0,3.7372]
[1753912606220,3.648,3768.0,3767.9,2.71498274]
[1753912606416,3.648,3768.0,3767.9,4.92478274]
[1753912609023,2.9794,3768.0,3767.9,4.92478274]
[1753912609230,0.53079,3768.1,3768.0,3.7372]
[1753912609531,4.17879,3768.1,3768.0,3.7372]
[1753912611228,4.17879,3768.1,3768.0,3.048]
[1753912611929,4.17879,3768.1,3768.0,3.7372]
[1753912613636,0.53079,3768.1,3768.0,3.7372]
[1753912613838,4.17879,3768.1,3768.0,3.7372]
[1753912614734,4.17879,3768.1,3768.0,3.048]
[1753912614936,4.17879,3768.1,3768.0,3.7372]
[1753912620141,0.53081,3767.9,3767.8,1.18758274]
[1753912620332,4.16401,3767.9,3767.8,1.18758274]
[1753912620547,2.00316,3767.5,3767.4,2.8299]
[1753912620729,3.46756,3767.5,3767.4,3.7075]
[1753912621036,2.53296,3767.5,3767.4,3.7075]
[1753912621836,1.56176,3767.5,3767.4,3.7075]
[1753912622029,3.46756,3767.5,3767.4,3.7075]
[1753912622235,3.63426,3767.5,3767.4,3.7075]
[1753912622438,4.16406,3767.5,3767.4,3.7075]
[1753912623138,4.16406,3767.5,3767.4,2.1478]
[1753912623441,4.16406,3767.5,3767.4,3.7075]
[1753912623836,0.95884,3767.0,3766.9,6.76818274]
[1753912624037,1.48864,3767.0,3766.9,6.76818274]
[1753912624443,1.48864,3767.0,3766.9,8.10288274]
[1753912625139,2.53304,3767.0,3766.9,8.10288274]
[1753912625337,4.16414,3767.0,3766.9,6.9153]
[1753912625937,4.16414,3767.0,3766.9,6.2332]
[1753912626345,4.16414,3767.0,3766.9,6.9153]
[1753912626644,4.16414,3767.0,3766.9,3.2078]
[1753912627746,2.00331,3766.5,3766.4,2.1478]
[1753912628044,3.6332,3766.4,3766.3,5.639]
[1753912628239,3.6332,3766.4,3766.3,6.3211]
[1753912628440,3.6332,3766.4,3766.3,4.9864]
[1753912628640,1.4723,3766.0,3765.9,5.29638274]
[1753912628835,0.4279,3766.0,3765.9,5.89058274]
[1753912629041,4.16059,3765.9,3765.8,0.39831645]
[1753912631249,10.34817274,3765.9,3765.8,6.45e-06]
[1753912631446,0.53119,3765.2,3765.1,2.4312]
[1753912631639,3.45379,3765.2,3765.1,0.6526]
[1753912631841,4.14942,3765.0,3764.9,0.6526]
[1753912633543,2.00355,3764.8,3764.7,2.0073]
[1753912633744,4.14945,3764.8,3764.7,2.6599]
[1753912633945,4.14945,3764.8,3764.7,0.6526]
[1753912634546,2.00357,3764.6,3764.5,5.3556]
[1753912634746,4.14947,3764.6,3764.5,3.2078]
[1753912634940,4.14947,3764.6,3764.5,3.8604]
[1753912635952,4.14947,3764.6,3764.5,5.1856]
[1753912636255,4.14947,3764.6,3764.5,4.308]
[1753912636451,4.14947,3764.6,3764.5,5.3556]
[1753912636652,4.14947,3764.6,3764.5,3.7075]
[1753912637049,4.14947,3764.6,3764.5,3.0254]
[1753912637250,4.14947,3764.6,3764.5,1.5536]
[1753912637452,4.14947,3764.6,3764.5,1.1002]
[1753912637652,4.14947,3764.6,3764.3,1.5597]
[1753912637653,2.51574274,3764.7,3764.2,0.6526]
[1753912637954,3.6182,3764.2,3764.1,3.8604]
[1753912638151,3.6182,3764.2,3764.1,0.6526]
[1753912638556,3.6182,3764.2,3764.1,1.5302]
[1753912638854,1.4503,3764.1,3763.8,0.6821]
[1753912639052,4.14956,3764.0,3763.9,3.7075]
[1753912640252,4.14956,3764.0,3763.9,1.5536]
[1753912640449,0.53139,3763.8,3763.7,3.2078]
[1753912640659,4.14961,3763.6,3763.5,3.7075]
[1753912641957,4.14961,3763.6,3763.5,0.6526]
[1753912642153,4.14964,3763.4,3763.3,3.8604]
[1753912642351,3.45404,3763.4,3763.3,3.2078]
[1753912642553,4.14964,3763.4,3763.3,3.2078]
[1753912643554,1.56234,3763.4,3763.3,6.9153]
[1753912643749,0.925,3764.0,3763.4,1.4952]
[1753912643955,0.5314,3763.7,3763.6,1.4952]
[1753912644157,0.5314,3763.7,3763.6,2.8299]
[1753912644450,0.5314,3763.7,3763.6,3.7075]
[1753912644958,0.5314,3763.8,3763.7,3.7075]
[1753912646259,3.2078,3764.7,3764.6,0.97887]
[1753912646459,1.4005,3765.2,3765.1,1.4952]
[1753912646762,1.4005,3765.2,3765.1,3.7075]
[1753912647161,2.0588,3765.2,3765.1,3.7075]
[1753912647462,1.5276,3765.2,3765.1,3.7075]
[1753912647656,0.8693,3765.2,3765.1,3.7075]
[1753912647852,1.5833,3765.4,3765.3,0.5942]
[1753912648059,1.0997,3765.4,3765.3,3.7075]
[1753912648259,1.18945,3765.5,3765.4,1.4952]
[1753912648460,2.05875,3765.5,3765.4,1.4952]
[1753912648855,2.05875,3765.5,3765.4,3.42514801]
[1753912649063,2.05875,3765.5,3765.4,4.11734801]
[1753912649765,2.65055,3765.5,3765.4,4.11734801]
[1753912650366,3.56255,3765.5,3765.4,4.11734801]
[1753912657271,0.53115,3765.5,3765.4,4.11734801]
[1753912659470,0.53115,3765.5,3765.4,7.32514801]
[1753912660373,0.53115,3765.5,3765.4,4.11734801]
[1753912666769,0.53115,3765.5,3765.4,3.7957]
[1753912668568,0.53115,3765.5,3765.4,4.11997334]
[1753912668769,0.53115,3765.5,3765.4,3.7957]
[1753912669182,1.16715,3765.5,3765.4,3.7957]
[1753912669579,1.16715,3765.5,3765.4,4.11993806]
[1753912669881,2.05445,3765.5,3765.4,4.11993806]
[1753912670074,2.96645,3765.5,3765.4,4.11990665]
[1753912672578,3.55825,3765.5,3765.4,4.11990665]
[1753912673086,3.55825,3765.5,3765.4,4.11993043]
[1753912673585,4.24545,3765.5,3765.4,0.32423043]
[1753912674787,2.01032,3765.0,3764.9,3.113]